Cogmind - Beta 15 @@@ ROGUE MODE // 2025.08.25 @ 16:50:25 Player: Naughtyusername Result: Smashed by cave-in Performance ------------- Evolutions (0) 0 Regions Visited (2) 400 Robots Destroyed (26) 130 Value Destroyed (618) 618 Prototype IDs (4) 80 Alien Tech Used (0) 0 Bonus (0) 0 TOTAL SCORE: 1228 Bonus ------- None Cogmind --------- Core Integrity 0/250 Matter 205/300 Energy 125/125 System Corruption 13% Temperature Cool (0) Movement Core (450) Ox8 Location -10/Mines Parts ------- > --- POWER (1) -------- Light Ion Engine > --- PROPULSION (2) --- (None) > --- UTILITY (2) ------ Large Storage Unit Utility Shielding > --- WEAPON (2) ------- Light Cannon > --- INVENTORY (15) --- Medium Storage Unit Huge Storage Unit Seismic Detector Hacking Suite Light Cannon Grenade Launcher Peak State ------------ > --- POWER ------------ Light Nuclear Core > --- PROPULSION ------- Aluminum Leg Aluminum Leg > --- UTILITY ---------- Large Storage Unit Seismic Detector > --- WEAPON ----------- Light Cannon Light Cannon > --- INVENTORY -------- Ion Engine Aluminum Leg Medium Storage Unit Huge Storage Unit Targeting Computer Propulsion Shielding Utility Shielding Hacking Suite Assault Rifle Light Cannon Light Cannon Light Cannon Light Cannon Light Cannon [Rating: 10] Favorites ----------- Power Ion Engine Engine Ion Engine Power Core Light Nuclear Core Propulsion Aluminum Leg Leg Aluminum Leg Utility Large Storage Unit Device Seismic Detector Storage Large Storage Unit Processor Targeting Computer Protection Propulsion Shielding Weapon Light Cannon Ballistic Gun Assault Rifle Ballistic Cannon Light Cannon Build | -11 -10 -10 ------- Run | Yrd Mat Min Slots Evolved . | . . . Power . | . . . Propulsion . | . . . Utility . | . . . Weapon . | . . . Parts Attached 29 | 7 14 8 Power 5 | 1 1 3 Engine 4 | 1 . 3 Core 1 | . 1 . Reactor . | . . . Propulsion 10 | 2 8 . Treads . | . . . Leg 10 | 2 8 . Wheel . | . . . Hover . | . . . Flight . | . . . Utility 6 | 2 2 2 Device 1 | 1 . . Storage 2 | 1 1 . Processor 1 | . . 1 Hackware . | . . . Protection 2 | . 1 1 Artifact . | . . . Weapon 8 | 2 3 3 Energy Gun . | . . . Energy Cannon . | . . . Ballistic Gun 2 | 2 . . Ballistic Cannon 6 | . 3 3 Launcher . | . . . Special Weapon . | . . . Impact Weapon . | . . . Slashing Weapon . | . . . Piercing Weapon . | . . . Special Melee Weapon . | . . . Unidentified Prototypes . | . . . Parts Lost 14 | . 2 12 Power 3 | . 1 2 Propulsion 5 | . . 5 Utility 2 | . . 2 Weapon 4 | . 1 3 Highest Loss Streak 9 | . 2 9 To Critical Strikes . | . . . Average Backups 11 | . 11 12 Power . | . . . Propulsion 1 | . 1 2 Utility 4 | . 4 5 Weapon 4 | . 5 4 Tool/Special . | . . . Unused Backups 6 | . 1 5 Power 1 | . 1 . Propulsion . | . . . Utility 3 | . . 3 Weapon 2 | . . 2 Tool/Special . | . . . Average Slot Usage (%) 99 | . 99 97 Engine 10 | . 10 12 Core 2 | . 3 . Leg 27 | . 27 27 Device 7 | . 7 3 Storage 14 | . 14 14 Protection 6 | . 6 9 Ballistic Gun 2 | . 2 . Ballistic Cannon 25 | . 25 28 Peak Build Rating 10 | 7 10 8 Average Rating 7 | 5 8 7 On Entrance 5 | . 7 8 Naked Turns . | . . . Heaviest Build 32 | 15 32 32 Greatest Support 20 | 20 20 20 Greatest Overweight (x) 4 | 4 1 1 Average Overweight (x) . | . . 1 Largest Inventory Capacity 15 | 8 15 15 Average Capacity 13 | 7 13 15 Most Carried 15 | 1 15 15 Average Carried 11 | . 11 12 Final Capacity 15 | 8 15 15 Final Carried 15 | 1 15 6 Class Distribution -------------------- 96% | Mutant 3% | Scavenger-Mutant Dominant Class ---------------- Mutant | -10/Materials Mutant | -10/Mines Resources | -11 -10 -10 ----------- Run | Yrd Mat Min Matter Collected 1002 | 234 622 146 Remotely . | . . . Salvage Created 646 | 25 621 . Parts 44 | 1 43 . Haulers Intercepted . | . . . Recyclers Shooed 1 | . 1 . Parts Field Recycled . | . . . Retrieved Matter . | . . . Parts Self-Destructed . | . . . Prevented . | . . . Kills | -11 -10 -10 ------- Run | Yrd Mat Min Combat Hostiles Destroyed 20 | . 20 . Cannons 20 | . 20 . Classes Destroyed 7 | 1 6 . Worker 2 | . 2 . Builder 1 | . 1 . Tunneler 1 | 1 . . Recycler 1 | . 1 . Operator 1 | . 1 . Swarmer 6 | . 6 . Grunt 14 | . 14 . Best Kill Streak 6 | 1 6 . Combat Bots Only 5 | . 5 . Max Kills in Single Turn 2 | 1 2 . Gunslinging . | . . . Exploded . | . . . Melee . | . . . Uniques/NPCs Destroyed . | . . . Combat | -11 -10 -10 -------- Run | Yrd Mat Min Hostile Shots Fired 124 | . 94 30 Missed 29 | . 19 10 Hits 95 | . 75 20 Projectile 95 | . 75 20 AOE 25 | . . 25 Critical Strikes 1 | . 1 . Damage Taken 1970 | . 754 1216 Core 307 | . 85 222 Absorbed by Shields . | . . . Redirected to Shielding 83 | . 34 49 Core Remaining (%) 100 | 100 . . Volleys Fired 73 | 4 61 8 Largest 2 | 2 2 2 Hottest 60 | 40 60 60 Shots Fired 145 | 8 122 15 Gun 18 | 8 10 . Cannon 127 | . 112 15 Launcher . | . . . Special . | . . . Kinetic 145 | 8 122 15 Thermal . | . . . Explosive . | . . . Electromagnetic . | . . . Robot Hit Streak 10 | 3 10 3 Robot Miss Streak 5 | 3 5 2 Penetration Max . | . . . Secondary Targets . | . . . Shots Hit Robots 75 | 4 62 9 Core Hits 31 | 1 29 1 Critical Kills . | . . . Critical Parts Destroyed . | . . . Critical Strikes 2 | . 2 . Blast 2 | . 2 . Melee Attacks . | . . . Impact . | . . . Slashing . | . . . Piercing . | . . . Sneak Attacks . | . . . Combat Hostiles . | . . . Follow-up Attacks . | . . . Damage Inflicted 1290 | 63 1068 159 Guns 113 | 63 50 . Cannons 1176 | . 1017 159 Explosions . | . . . Melee . | . . . Ramming 1 | . 1 . Kinetic 1289 | 63 1067 159 Thermal . | . . . Explosive . | . . . Electromagnetic . | . . . Impact . | . . . Slashing . | . . . Piercing . | . . . Highest Corruption 1 | . 1 1 Average Corruption 1 | . 1 1 Corruption Purged . | . . . Corruption Blocked . | . . . Effects 5 | . 5 . Message Errors 2 | . 2 . Heat Flow Errors 1 | . 1 . Parts Rejected 1 | . 1 . Data Loss (minor) 1 | . 1 . Overload Shots . | . . . Overflow Damage 16 | . 4 12 Projectiles 16 | . 4 12 Explosions . | . . . Melee . | . . . Knockbacks 14 | . 12 2 Impact . | . . . Kinetic 13 | . 11 2 Secondary 1 | . 1 . Self-Inflicted Damage . | . . . Shots . | . . . Rammed . | . . . Targets Rammed 1 | . 1 . Kicked 1 | . 1 . Crushed . | . . . Highest Temperature 190 | . 190 . Average Temperature 29 | . 29 . Received Heat Transfer 270 | . 270 . Siege Activations . | . . . Martial Activations . | . . . Shielding Activations . | . . . Robots Disrupted . | . . . Combat Hostiles . | . . . Robots Corrupted . | . . . Combat Hostiles . | . . . Parts Fried . | . . . Impact Corruptions . | . . . Robots Melted . | . . . Combat Hostiles . | . . . Parts Melted . | . . . Heat Transferred . | . . . Parts Sabotaged . | . . . Parts Stolen . | . . . Parts Stripped . | . . . Power Chain Reactions . | . . . Alert | -11 -10 -10 ------- Run | Yrd Mat Min Maximum Alert Level . | . . . Low Security (%) 100 | 100 100 100 Level 1 . | . . . Level 2 . | . . . Level 3 . | . . . Level 4 . | . . . Level 5 . | . . . High Security . | . . . Max Security . | . . . Peak Influence 138 | . 138 48 Initial 48 | . . 48 Average 48 | . 57 13 Influence Increases 584 | 5 579 . Destroy 0b10 Robot/C 400 | . 400 . Destroy 0b10 Robot/NC 30 | 5 25 . Destroy Leader 90 | . 90 . Successful Hack 31 | . 31 . Disable Machine 30 | . 30 . Destroy Structure 3 | . 3 . Influence Decreases 584 | 5 453 126 Entered New Map 78 | . . 78 Time Decay 434 | 5 381 48 Lost Part 20 | . 20 . Purge Threat 52 | . 52 . Squads Dispatched 5 | . 5 . Investigation 3 | . 3 . Extermination . | . . . Reinforcement 2 | . 2 . Assault . | . . . Garrison . | . . . Intercept . | . . . Searches Triggered . | . . . Construction Impeded . | . . . Haulers Reinforced . | . . . Active Scanning Responses . | . . . Cargo Convoy Interrupts . | . . . Stealth | -11 -10 -10 --------- Run | Yrd Mat Min Distress Signals 2 | . 2 . Communications Jammed . | . . . Distress Signals . | . . . Times Spotted 30 | . 29 1 Peak Tracking Total 5 | . 5 1 Tactical Retreats . | . . . Traps | -11 -10 -10 ------- Run | Yrd Mat Min Traps Triggered 3 | . 3 . Indirectly . | . . . Trap Hack Attempts . | . . . Triggered . | . . . Disarmed . | . . . Reprogrammed 1 | . 1 . Reused . | . . . Traps Extracted . | . . . Installed . | . . . Triggered . | . . . Machines | -11 -10 -10 ---------- Run | Yrd Mat Min Machines Disabled 2 | . 2 . Max in Single Turn 1 | . 1 . Machines Repaired . | . . . Machines Dismantled . | . . . Machines Sabotaged . | . . . Overloaded Fab Kills . | . . . Hacking | -11 -10 -10 --------- Run | Yrd Mat Min Machines Accessed 6 | . 6 . Terminals 6 | . 6 . Fabricators . | . . . Repair Stations . | . . . Recycling Units . | . . . Scanalyzers . | . . . Garrison Access . | . . . Total Hacks 16 | . 16 . Successful 10 | . 10 . Failed 6 | . 6 . Catastrophic 1 | . 1 . Database Lockouts . | . . . Manual 4 | . 4 . Terminals 16 | . 16 . Fabricators . | . . . Repair Stations . | . . . Recycling Units . | . . . Scanalyzers . | . . . Garrison Access . | . . . Terminal Hacks 9 | . 9 . Prototype ID Bank 2 | . 2 . Branch Access Points 1 | . 1 . Unreport Threat 1 | . 1 . Reprogram Traps 2 | . 2 . Maintenance Status 1 | . 1 . Hauler Manifests 1 | . 1 . Registered Components 1 | . 1 . Fabricator Hacks . | . . . Repair Station Hacks . | . . . Recycling Unit Hacks . | . . . Scanalyzer . | . . . Garrison Access Hacks . | . . . Unauthorized Hacks 1 | . 1 . Terminals 1 | . 1 . Skim 1 | . 1 . Fabricators . | . . . Repair Stations . | . . . Recycling Units . | . . . Scanalyzers . | . . . Garrison Access . | . . . Data Cores Recovered . | . . . Used . | . . . Hacking Detections 4 | . 4 . Full Trace Events 1 | . 1 . Feedback Events 1 | . 1 . Corruption 1 | . 1 . Feedback Blocked . | . . . Robot Schematics Acquired . | . . . Robots Built . | . . . Authchips . | . . . Time . | . . . Total Robot Build Rating . | . . . Part Schematics Acquired . | . . . Parts Built . | . . . Authchips . | . . . Time . | . . . Total Part Build Rating . | . . . Parts Repaired . | . . . Time . | . . . Parts Recycled . | . . . Recycled Matter . | . . . Retrieved Matter . | . . . Retrieved Components . | . . . Parts Scanalyzed . | . . . Part Schematics Acquired . | . . . Parts Damaged . | . . . Bothacking | -11 -10 -10 ------------ Run | Yrd Mat Min Used RIF Installer . | . . . Robots Hacked . | . . . Non-combat . | . . . Combat . | . . . Robot Hacks Applied . | . . . Relay Couplers Released . | . . . Fabnet Peak Effective % . | . . . Robots Rewired . | . . . Allies Hacked . | . . . Hacks Repelled . | . . . Allies | -11 -10 -10 -------- Run | Yrd Mat Min Total Allies . | . . . Largest Group . | . . . Highest-Rated Group . | . . . Highest-Rated Ally . | . . . Total Orders . | . . . Ally Attacks . | . . . Total Damage . | . . . Kills . | . . . Allies Corrupted . | . . . Allies Melted . | . . . Intel | -11 -10 -10 ------- Run | Yrd Mat Min Active Infowar (turns) 819 | 43 711 65 Seismic 819 | 43 711 65 Robot Analysis Total . | . . . Derelict Logs Recovered . | . . . Drone Launches . | . . . Drone Recoveries . | . . . Exploration | -11 -10 -10 ------------- Run | Yrd Mat Min Turns Passed 1601 | 87 1309 205 Spaces Moved 758 | 51 620 87 Core 9 | 9 . . Treads . | . . . Legs 749 | 42 620 87 Wheels . | . . . Hover . | . . . Flight . | . . . Fastest Speed 50 | 50 120 190 Average Speed 168 | 126 169 190 Slowest Speed 250 | 250 190 190 Overloaded Moves . | . . . Propulsion Burnouts . | . . . Robots Hopped . | . . . Potential Cave-ins . | . . . Cave-ins Triggered 1 | . . 1 Exploration Rate (%) 39 | 4 93 20 Regions Visited 2 Branch Regions 1 Pre-discovered Areas . | . . . Known Exits Taken 1 | . 1 . Unknown Exits Taken 1 | 1 . . Scrap Searched 1 | . . 1 Spaces Dug . | . . . Terrain Destroyed . | . . . Melee . | . . . Projectile . | . . . AOE . | . . . Terrain Rammed . | . . . Walls Destroyed . | . . . Machines Disabled . | . . . Actions | -11 -10 -10 --------- Run | Yrd Mat Min Total 930 | 62 756 112 Wait 31 | . 31 . Move 756 | 50 619 87 Hop . | . . . Pick Up 14 | 1 12 1 Fast Attach 15 | 7 7 1 Attach 10 | . 2 8 Detach 2 | . 2 . Swap 16 | . 12 4 Drop 12 | . 9 3 Fire 73 | 4 61 8 Melee . | . . . Ram . | . . . Kick 1 | . 1 . Crush . | . . . Escape Stasis . | . . . Rewire . | . . . Trap . | . . . Miscellaneous . | . . . Route ------- -11/Scrapyard -10/Materials (discovered 4 exits: [*Mat x3] / *Min) -10/Mines History --------- Turn | Location | Event 13 | -11/Scrapyard | Discovered new exit (range 16) 88 | -11/Scrapyard | Entered Materials 310 | -10/Materials | Build established: Mutant 498 | -10/Materials | Discovered new exit (range 8) 831 | -10/Materials | Discovered new exit (range 16) 1008 | -10/Materials | Identified exit to Mines 1233 | -10/Materials | Discovered new exit (range 16) 1397 | -10/Materials | Entered Mines 1548 | -10/Mines | Core integrity fell below 50% 1594 | -10/Mines | Lost 9 parts (2p3n2u2w) 1603 | -10/Mines | Crushed by falling debris 1603 | -10/Mines | Smashed by cave-in Last Messages --------------- 01588_ K-01 Serf collects debris. 01589_ U-05 Engineer lays Concrete. 01589_ U-05 Engineer builds a Wall. 01592_ K-01 Serf collects debris. 01592_ Acquired 45 matter. 01594_ The unstable cave ceiling collapses. 01594_ U-05 Engineer lays Concrete. 01596_ K-01 Serf collects debris. 01597_ U-05 Engineer builds a Wall. 01601_ U-05 Engineer lays Concrete. 01602_ U-05 Engineer builds a Wall. 01602_ K-01 Serf collects debris. 01603_ The unstable cave ceiling collapses. 01603_ Crushed by falling debris. 01603_ Aluminum Leg destroyed. 01603_ System corrupted by crushing effect (+4). 01603_ Lgt. Cannon destroyed. 01603_ System corrupted by crushing effect (+5). 01603_ Aluminum Leg destroyed. 01603_ System corrupted by crushing effect (+3). Map ----- +----------------------------------------------------+ | | | | | | | | | | | ????????????????????????????????????????????????? | | ????????????????????????????????????????????????? | | ????????????????????????????????????????????????? | | ????????????????????????????????????????????????? | | ????????????????????????????????????????????????? | | ????????????????????????????????????????????????? | | ????????????????????????????????????????????????? | | ????????????????????????????????????????????????? | | ????????????????????????????????????????????????? | | ????????????????????????????????????????????????? | | ????????????????????????????????????????????????? | | ????????????? ?????????######???????????????????? | | ????????????? ???????? # ????????????????????? | | ???????????? ####??#### ##???????????????????? | | ???????????? #?? # #???????????????????? | | ????????????? #####u ###??????????????????? | | ?????????????? % ## # #??????????????????? | | ???????????????# # ## k # #??????????????????? | | ????????????????# # #??????????????????? | | ?????????????????# ## ##??????????????????? | | ?????????????????# @ # #??####?????????????? | | ?????????????????# # # ### ####??????????? | | ?????????????????# ## # ##?????????? | | ?????????????????##### = # # ######????? | | ?????????????????????# = !# # # ##??## | | ?????????????????????# ### # """ #### | | ?????????????????????### [ """ | | ???????????????????????# | | ???????????????????????# | | ???????????????????????# ### | | ???????????????????????### # | | ?????????????????????????#### ##### | | ????????????????????????????####???# # # | | ????????????????????????????????????? #### | | ??????????????????????????????????????# # #??? | | ???????????????????????????????????????## #??? | | ????????????????????????????????????????# ###??? | | ????????????????????????????????????????# ?????? | | ????????????????????????????????????????# ?????? | | ????????????????????????????????????????# ?????? | | ????????????????????????????????????????# ?????? | | ????????????????????????????????????????? ?????? | | ????????????????????????????????????????????????? | | ????????????????????????????????????????????????? | | ????????????????????????????????????????????????? | +----------------------------------------------------+ Best States ------------- Heat Dissipation 25 Energy Generation 14 Energy Capacity 250 Matter Stores 300 Matter Capacity 300 Sight Range 16 Terrain Scan Density 10 Propulsion Shielding 33 Utility Shielding 33 Evasion (%) 55 Targeting Accuracy 5 Item Schematics ----------------- None Robot Schematics ------------------ None Fabricated ------------ Nothing Repaired ---------- Nothing Alien Tech Used ----------------- None Achievements -------------- None Challenges ------------ None Game ------ Seed MatterParticleDeconstructor Manual? 0 Play Time 00:08:26 Cumulative 158.8 hours Start 2025.08.25 @ 16:43:22 End 2025.08.25 @ 16:50:25 Sessions 1 Manual Loads 0 Difficulty Rogue Special Mode None Game No. 70 Rogue 70 Adventurer 0 Explorer 0 Win Type - Total 3 Types 1/0/2/0/0/0/0/0/0/0 Lore% 77 Gallery% 66 Achievement% 78 Wizard Run 0 Options --------- Layout 2 ASCII 0 Keyboard 1 Movement Vi Keybinds 0 Fullscreen 1 Font 28/SwanstonBold Map View 50x52 Zoom Use 0% Tactical HUD 1 Map Filters NONE Filters NONE Steam 1 RUN: 0201e4d6-5ff7-4461-9fc5-52e5701b4b4e